Cogmind - Beta 10.2 @@@ ROGUE MODE // 2021.10.26 @ 22:36:57 Player: WM2K Result: Destroyed by as-43991 with Assembled Maul Performance ------------- Evolutions (0) 0 Regions Visited (4) 800 Robots Destroyed (30) 150 Value Destroyed (459) 459 Prototype IDs (25) 500 Alien Tech Used (0) 0 Bonus (325) 325 TOTAL SCORE: 2234 Bonus ------- Follower Combat Kills 25 Aligned with FarCom 300 Cogmind --------- Core Integrity 0/250 Matter 290/300 Energy 150/150 System Corruption 1% Temperature Cool (0) Movement Core (150) Ox2 Location -9/Mines Parts ------- > --- POWER (1) -------- Light Angular Momentum Engine > --- PROPULSION (2) --- (None) > --- UTILITY (2) ------ (None) > --- WEAPON (2) ------- (None) > --- INVENTORY (4) ---- Medium Storage Unit YOLO Cannon Peak State ------------ > --- POWER ------------ Ion Engine > --- PROPULSION ------- (None) > --- UTILITY ---------- Targeting Computer > --- WEAPON ----------- YOLO Cannon > --- INVENTORY -------- Medium Storage Unit [Rating: 22] Favorites ----------- Power Ion Engine Engine Ion Engine Propulsion Wheel Wheel Wheel Hover Unit Hover Unit Utility Improved Terrain Scanner Device Improved Terrain Scanner Processor Targeting Computer Weapon Light Cannon Energy Gun EM Shotgun Energy Cannon Particle Cannon Ballistic Gun Assault Rifle Ballistic Cannon Light Cannon Launcher Grenade Launcher Special Weapon Mining Laser Special Melee Weapon Datajack Build | -11 -10 -10 -10 -9 ------- Run | Scr Mat Min Exi Min Slots Evolved . | . . . . . Power . | . . . . . Propulsion . | . . . . . Utility . | . . . . . Weapon . | . . . . . Parts Attached 53 | 8 13 22 1 9 Power 9 | 1 2 1 1 4 Engine 9 | 1 2 1 1 4 Core . | . . . . . Reactor . | . . . . . Propulsion 13 | 3 4 6 . . Treads . | . . . . . Leg . | . . . . . Wheel 10 | 3 1 6 . . Hover 3 | . 3 . . . Flight . | . . . . . Utility 6 | 2 3 1 . . Device 3 | 1 2 . . . Storage . | . . . . . Processor 3 | 1 1 1 . . Hackware . | . . . . . Protection . | . . . . . Artifact . | . . . . . Weapon 25 | 2 4 14 . 5 Energy Gun 7 | . 3 4 . . Energy Cannon 4 | . . . . 4 Ballistic Gun 2 | 2 . . . . Ballistic Cannon 7 | . . 7 . . Launcher 1 | . . 1 . . Special Weapon 3 | . . 2 . 1 Impact Weapon . | . . . . . Slashing Weapon . | . . . . . Piercing Weapon . | . . . . . Special Melee Weapon 1 | . 1 . . . Unidentified Prototypes . | . . . . . Parts Lost 13 | . 1 4 . 8 Power 2 | . . . . 2 Propulsion 3 | . . 1 . 2 Utility 3 | . 1 . . 2 Weapon 5 | . . 3 . 2 Highest Loss Streak 5 | . 1 2 . 5 Average Slot Usage (%) 97 | . 98 99 99 80 Engine 13 | . 14 14 13 12 Wheel 23 | . 16 24 28 21 Hover 4 | . 11 3 . . Device 16 | . 24 14 14 10 Processor 10 | . 2 14 14 12 Energy Gun 8 | . 24 5 . . Ballistic Gun 1 | . 3 . . . Ballistic Cannon 16 | . . 20 28 13 Naked Turns 11 | . . . . 11 Heaviest Build 17 | 10 13 12 12 17 Greatest Support 26 | 26 20 20 20 20 Greatest Overweight (x) 3 | . 2 1 . 3 Average Overweight (x) . | . . . . . Largest Inventory Capacity 4 | 4 4 4 4 4 Average Capacity 4 | 4 4 4 4 4 Most Carried 4 | 4 4 4 4 4 Average Carried 3 | 2 3 3 3 3 Final Capacity 4 | 4 4 4 4 4 Final Carried 4 | 2 4 4 4 3 Class Distribution -------------------- 61% | Mutant 30% | Scavenger-Mutant 6% | Skirmisher Dominant Class ---------------- Mutant | -10/Materials Scavenger-Mutant | -10/Mines Mutant | -10/Exiles Skirmisher | -9/Mines Resources | -11 -10 -10 -10 -9 ----------- Run | Scr Mat Min Exi Min Matter Collected 926 | 273 153 405 . 95 Remotely . | . . . . . Salvage Created 756 | 80 182 423 . 71 Parts 61 | 10 17 33 . 1 Haulers Intercepted . | . . . . . Recyclers Shooed 1 | . 1 . . . Parts Field Recycled . | . . . . . Retrieved Matter . | . . . . . Parts Self-Destructed . | . . . . . Prevented . | . . . . . Kills | -11 -10 -10 -10 -9 ------- Run | Scr Mat Min Exi Min Combat Hostiles Destroyed 19 | . 2 12 . 5 Guns 7 | . 2 5 . . Cannons 7 | . . 3 . 4 AOE 5 | . . 4 . 1 Classes Destroyed 8 | 1 4 2 . 1 Worker 3 | . 1 1 . 1 Builder 4 | . 1 3 . . Tunneler 5 | 3 . 2 . . Recycler 1 | . . 1 . . Watcher 3 | . 3 . . . Swarmer 7 | . . 7 . . Grunt 7 | . 2 5 . . Assembled 5 | . . . . 5 Best Kill Streak 4 | 2 2 4 . 4 Combat Bots Only 4 | . 1 3 . 4 Max Kills in Single Turn 2 | 1 1 2 . 1 Gunslinging . | . . . . . Exploded 1 | . . 1 . 1 Melee . | . . . . . Uniques/NPCs Destroyed . | . . . . . Combat | -11 -10 -10 -10 -9 -------- Run | Scr Mat Min Exi Min Damage Taken 1225 | . 61 455 . 709 Core 273 | . 20 80 . 173 Absorbed by Shields . | . . . . . Core Remaining (%) 100 | 100 . . . . Volleys Fired 69 | 5 13 38 . 13 Largest 2 | 2 2 2 . 2 Hottest 145 | 40 90 145 . 103 Shots Fired 131 | 10 25 74 . 22 Gun 62 | 10 25 27 . . Cannon 62 | . . 40 . 22 Launcher 4 | . . 4 . . Special 3 | . . 3 . . Kinetic 61 | 10 . 40 . 11 Thermal 14 | . . 3 . 11 Explosive 4 | . . 4 . . Electromagnetic 52 | . 25 27 . . Robot Hit Streak 14 | 3 10 8 . 14 Robot Miss Streak 5 | 1 3 4 . 5 Penetration Max . | . . . . . Secondary Targets 1 | . . 1 . . Max Gunslinging Chain 1 | . . 1 . . Shots Hit Robots 80 | 5 20 46 . 9 Core Hits 48 | 3 10 27 . 8 Critical Hits 1 | . . 1 . . Critical Kills . | . . . . . Critical Parts Destroyed 1 | . . 1 . . Melee Attacks 1 | . 1 . . . Impact . | . . . . . Slashing . | . . . . . Piercing . | . . . . . Sneak Attacks . | . . . . . Combat Hostiles . | . . . . . Follow-up Attacks . | . . . . . Damage Inflicted 1823 | 71 278 1103 . 371 Guns 611 | 71 278 262 . . Cannons 493 | . . 338 . 155 Explosions 695 | . . 479 . 216 Melee . | . . . . . Ramming . | . . . . . Kinetic 461 | 71 . 338 . 52 Thermal 620 | . . 301 . 319 Explosive 202 | . . 202 . . Electromagnetic 540 | . 278 262 . . Impact . | . . . . . Slashing . | . . . . . Piercing . | . . . . . Highest Corruption 1 | . . . . 1 Average Corruption 1 | . . . . 1 Corruption Purged . | . . . . . Overload Shots . | . . . . . Overflow Damage 14 | . . 14 . . Projectiles . | . . . . . Explosions 14 | . . 14 . . Melee . | . . . . . Knockbacks 6 | . . 5 . 1 Impact . | . . . . . Kinetic 5 | . . 4 . 1 Secondary 1 | . . 1 . . Self-Inflicted Damage 118 | . . 55 . 63 Shots 3 | . . 2 . 1 Rammed 1 | . . . . 1 Targets Rammed 1 | . . . . 1 Kicked . | . . . . . Crushed . | . . . . . Highest Temperature 210 | . 108 138 . 210 Average Temperature 52 | . 31 41 . 98 Received Heat Transfer 111 | . 36 75 . . Siege Activations . | . . . . . Robots Corrupted . | . . . . . Combat Hostiles . | . . . . . Parts Fried 1 | . 1 . . . Impact Corruptions . | . . . . . Robots Melted . | . . . . . Combat Hostiles . | . . . . . Parts Melted . | . . . . . Heat Transferred 745 | . . 400 . 345 Parts Sabotaged . | . . . . . Parts Stolen . | . . . . . Parts Stripped . | . . . . . Power Chain Reactions 3 | . . 3 . . Missiles Intercepted . | . . . . . Alert | -11 -10 -10 -10 -9 ------- Run | Scr Mat Min Exi Min Peak Influence 287 | 15 110 287 . 5 Initial 21 | . 9 21 . . Average 85 | 7 44 166 . . Maximum Alert Level 1 | . . 1 . . Low Security (%) 87 | 100 100 70 . 100 Level 1 12 | . . 29 . . Level 2 . | . . . . . Level 3 . | . . . . . Level 4 . | . . . . . Level 5 . | . . . . . High Security . | . . . . . Max Security . | . . . . . Squads Dispatched 1 | . 1 . . . Investigation . | . . . . . Extermination . | . . . . . Reinforcement 1 | . 1 . . . Assault . | . . . . . Garrison . | . . . . . Intercept . | . . . . . Construction Impeded . | . . . . . Haulers Reinforced . | . . . . . Stealth | -11 -10 -10 -10 -9 --------- Run | Scr Mat Min Exi Min Distress Signals 2 | . 2 . . . Communications Jammed . | . . . . . Distress Signals . | . . . . . Times Spotted 47 | . 9 16 . 22 Peak Tracking Total 10 | . 2 3 . 10 Tactical Retreats 7 | . 1 3 . 3 Traps | -11 -10 -10 -10 -9 ------- Run | Scr Mat Min Exi Min Traps Triggered . | . . . . . Indirectly . | . . . . . Trap Hack Attempts . | . . . . . Triggered . | . . . . . Disarmed . | . . . . . Reprogrammed 2 | . 2 . . . Reused . | . . . . . Traps Extracted . | . . . . . Installed . | . . . . . Triggered . | . . . . . Machines | -11 -10 -10 -10 -9 ---------- Run | Scr Mat Min Exi Min Machines Disabled . | . . . . . Max in Single Turn . | . . . . . Machines Sabotaged . | . . . . . Garrisons Compromised . | . . . . . Overloaded Fab Kills . | . . . . . Fab Network Shutdowns . | . . . . . Hacking | -11 -10 -10 -10 -9 --------- Run | Scr Mat Min Exi Min Machines Accessed 5 | . 3 . 2 . Terminals 2 | . 2 . . . Fabricators . | . . . . . Repair Stations . | . . . . . Recycling Units 1 | . 1 . . . Scanalyzers . | . . . . . Garrison Access . | . . . . . Total Hacks 17 | . 13 . 4 . Successful 13 | . 9 . 4 . Failed 4 | . 4 . . . Catastrophic . | . . . . . Database Lockouts . | . . . . . Manual 1 | . . . 1 . Terminals 12 | . 12 . . . Fabricators . | . . . . . Repair Stations . | . . . . . Recycling Units 1 | . 1 . . . Scanalyzers . | . . . . . Garrison Access . | . . . . . Terminal Hacks 12 | . 8 . 4 . Record 3 | . . . 3 . Prototype ID Bank 1 | . 1 . . . Emergency Access Points 1 | . 1 . . . Alert Level 1 | . 1 . . . Locate Traps 1 | . 1 . . . Reprogram Traps 2 | . 2 . . . Zone Layout 2 | . 2 . . . EX-Prototype ID Bank 1 | . . . 1 . Fabricator Hacks . | . . . . . Repair Station Hacks . | . . . . . Recycling Unit Hacks 1 | . 1 . . . Report Inventory 1 | . 1 . . . Scanalyzer . | . . . . . Garrison Access Hacks . | . . . . . Unauthorized Hacks . | . . . . . Terminals . | . . . . . Fabricators . | . . . . . Repair Stations . | . . . . . Recycling Units . | . . . . . Scanalyzers . | . . . . . Garrison Access . | . . . . . Data Cores Recovered . | . . . . . Used . | . . . . . Hacking Detections 3 | . 3 . . . Full Trace Events . | . . . . . Feedback Events . | . . . . . Feedback Blocked . | . . . . . Robot Schematics Acquired . | . . . . . Robots Built . | . . . . . Matter . | . . . . . Time . | . . . . . Total Robot Build Rating . | . . . . . Part Schematics Acquired . | . . . . . Parts Built . | . . . . . Matter . | . . . . . Time . | . . . . . Total Part Build Rating . | . . . . . Parts Repaired . | . . . . . Time . | . . . . . Parts Recycled . | . . . . . Recycled Matter . | . . . . . Retrieved Matter . | . . . . . Retrieved Components . | . . . . . Parts Scanalyzed . | . . . . . Part Schematics Acquired . | . . . . . Parts Damaged . | . . . . . Bothacking | -11 -10 -10 -10 -9 ------------ Run | Scr Mat Min Exi Min Used RIF Installer . | . . . . . Robots Hacked 1 | . 1 . . . Non-combat . | . . . . . Combat 1 | . 1 . . . Robot Hacks Applied 1 | . 1 . . . parse_system 1 | . 1 . . . Relay Couplers Released . | . . . . . Robots Rewired . | . . . . . Allies Hacked . | . . . . . Hacks Repelled . | . . . . . Allies | -11 -10 -10 -10 -9 -------- Run | Scr Mat Min Exi Min Total Allies 3 | . . 1 . 2 Largest Group 2 | . . 1 . 2 Highest-Rated Group 49 | . . 31 . 49 Highest-Rated Ally 31 | . . 31 . 31 Total Orders . | . . . . . Ally Attacks 15 | . . 8 . 7 Total Damage 260 | . . 128 . 132 Kills 4 | . . 1 . 3 Allies Corrupted . | . . . . . Allies Melted . | . . . . . Intel | -11 -10 -10 -10 -9 ------- Run | Scr Mat Min Exi Min Robot Analysis Total . | . . . . . Derelict Logs Recovered 2 | . . 1 . 1 Drone Launches . | . . . . . Drone Recoveries . | . . . . . Exploration | -11 -10 -10 -10 -9 ------------- Run | Scr Mat Min Exi Min Turns Passed 2288 | 119 631 675 636 227 Spaces Moved 2243 | 107 585 604 769 178 Core 60 | 14 . . . 46 Treads . | . . . . . Legs . | . . . . . Wheels 1936 | 93 368 574 769 132 Hover 247 | . 217 30 . . Flight . | . . . . . Fastest Speed 50 | 50 56 56 80 50 Average Speed 80 | 79 83 79 80 80 Slowest Speed 200 | 90 185 120 80 200 Overloaded Moves . | . . . . . Propulsion Burnouts . | . . . . . Robots Hopped . | . . . . . Cave-ins Triggered . | . . . . . Exploration Rate (%) 62 | 5 88 80 93 44 Regions Visited 4 Branch Regions 3 Pre-discovered Areas 3 | . . 2 1 . Known Exits Taken . | . . . . . Unknown Exits Taken 4 | 1 1 1 1 . Scrap Searched 2 | . . 1 . 1 Spaces Dug . | . . . . . Terrain Destroyed 89 | . . 47 . 42 Melee . | . . . . . Projectile 4 | . . 2 . 2 AOE 85 | . . 45 . 40 Terrain Rammed . | . . . . . Walls Destroyed . | . . . . . Machines Disabled . | . . . . . Actions | -11 -10 -10 -10 -9 --------- Run | Scr Mat Min Exi Min Total 2571 | 130 699 716 790 236 Wait 146 | . 68 36 17 25 Move 2239 | 106 584 603 768 178 Hop . | . . . . . Pick Up 30 | 10 7 8 1 4 Fast Attach 15 | . 8 5 1 1 Attach 19 | 7 . 5 . 7 Detach 2 | . . . . 2 Swap 19 | 1 5 12 . 1 Drop 30 | 1 13 9 3 4 Fire 69 | 5 13 38 . 13 Melee 1 | . 1 . . . Ram 1 | . . . . 1 Kick . | . . . . . Crush . | . . . . . Escape Stasis . | . . . . . Rewire . | . . . . . Trap . | . . . . . Miscellaneous . | . . . . . Route ------- -11/Scrapyard -10/Materials (discovered 4 exits: [*Mat x3] / [*Min]) -10/Mines (discovered 3 exits: [*Mat x2] / *Exi) -10/Exiles (discovered 2 exits: [*Min x2]) -9/Mines (discovered 1 exit: Mat) History --------- Turn | Location | Event 8 | -11/Scrapyard | Discovered new exit (range 15) 120 | -11/Scrapyard | Entered Materials 198 | -10/Materials | Discovered new exit (range 13) 308 | -10/Materials | Build established: Mutant 363 | -10/Materials | Discovered new exit (range 9) 532 | -10/Materials | Discovered new exit (range 8) 703 | -10/Materials | Discovered new exit (range 10) 751 | -10/Materials | Entered Mines 762 | -10/Mines | Escorted by a lone wolf Derelict 772 | -10/Mines | Learned location of Zion (-7) 782 | -10/Mines | Learned location of Storage (-9) 899 | -10/Mines | Discovered new exit (range 18) 951 | -10/Mines | Build established: Scavenger-Mutant 1110 | -10/Mines | Discovered new exit (range 11) 1125 | -10/Mines | Found a hidden stash of uninstalled traps 1376 | -10/Mines | Deemed a non-threat by the Exiles lab entrance 1376 | -10/Mines | Discovered new exit (range 5) 1426 | -10/Mines | Entered Exiles 1460 | -10/Exiles | Discovered new exit (range 15) 1473 | -10/Exiles | Met 8R-AWN 1486 | -10/Exiles | Met EX-HEX 1526 | -10/Exiles | Met EX-DEC 1586 | -10/Exiles | Discovered new exit (range 14) 1613 | -10/Exiles | Build established: Mutant 1645 | -10/Exiles | Visited The Gauntlet 1770 | -10/Exiles | Met EX-BIN 1945 | -10/Exiles | Aligned with FarCom system 1946 | -10/Exiles | Given EX-Vault access code 1964 | -10/Exiles | Opened EX-Vault 1973 | -10/Exiles | Found YOLO Cannon 1992 | -10/Exiles | Warned to stay clear of 0b10 Research branches 2062 | -10/Exiles | Left Exiles lab with YOLO Cannon 2062 | -10/Exiles | Entered Mines 2113 | -9/Mines | Identified exit to Materials 2115 | -9/Mines | Assembled infested the area 2117 | -9/Mines | Met a Derelict bent on vengeance 2250 | -9/Mines | Core integrity fell below 50% 2266 | -9/Mines | Core integrity fell below 20% 2267 | -9/Mines | Lost 5 parts (1p2n1u1w) 2289 | -9/Mines | Destroyed by as-43991 with Assembled Maul Last Messages --------------- 02193_ Acquired 10 matter. 02197_ Dropped Lgt. Ion Engine. 02197_ Acquired Lgt. Angular Momentum Engine. 02225_ Imp. Terrain Scanner destroyed. 02225_ System corrupted by crushing effect (+1). 02230_ Wheel destroyed. 02230_ Particle Cannon destroyed. 02234_ Wheel destroyed. 02236_ Lgt. Angular Momentum Engine destroyed. 02236_ Dropped Lgt. Cannon. 02238_ as-32274 destroyed. 02241_ Slammed into as-53648. 02246_ Acquired 8 matter. 02249_ Acquired Ion Engine. 02262_ as-53648 sneak attacks. 02263_ K-01 Serf destroyed. 02268_ Ion Engine destroyed. 02268_ Targeting Computer destroyed. 02277_ Acquired 10 matter. 02278_ Acquired Lgt. Angular Momentum Engine. Map ----- +----------------------------------------------------+ | ????????????????????????????????????????????? | | ????????????????????????????????????????????? | | ????????????????????????????????????????????? | | ????????????????????????????????????????????? | | ????????????????????????????????????????????? | | ????????????????????????????????????????????? | | ????????????????????????????????????????????? | | ????????????????????????????????????????????? | | ????????????????????????????????????????????? | | ????????????????????????????????????????????? | | ????????????????????????????????????????????? | | ?????????????????????????????????????????? ?? | | ????????????????????????????????????????????? | | ????????????????????????????????????????????? | | ????????????????????????????????????????????? | | ????????????????????????????????????????????? | | ???????????????????????????????????????????